fUST/lending_fUST_20250312
["ID","MTS","AMOUNT","RATE_DAILY","PERIOD"]
[355993940,1741786243007,-500.0,0.00021917,2]
[355993941,1741786243018,-532.65827802,0.00021917,2]
[355993942,1741786243029,-500.0,0.00021917,2]
[355993943,1741786243039,-519.5,0.00021917,2]
[355993944,1741786243048,-514.11227303,0.00021917,2]
[355993945,1741786243057,-500.0,0.00021917,2]
[355993946,1741786243066,-500.0,0.00021917,2]
[355993947,1741786243076,-500.0,0.00021917,2]
[355993948,1741786243085,-166.29440643,0.00021917,2]
[355993949,1741786243095,-500.0,0.00021917,2]
[355993950,1741786243105,-500.0,0.00021917,2]
[355993951,1741786243114,-500.0,0.00021917,2]
[355993952,1741786243125,-260.32,0.00021917,2]
[355993953,1741786243134,-559.31131292,0.00021917,2]
[355993954,1741786243144,-500.0,0.00021917,2]
[355993955,1741786243153,-500.0,0.00021917,2]
[355993956,1741786243162,-505.97256253,0.00021917,2]
[355993957,1741786243172,-634.32534296,0.00021917,2]
[355993958,1741786243182,-386.11062339,0.00021917,2]
[355993959,1741786243191,-500.0,0.00021917,2]
[355993960,1741786243200,-500.0,0.00021917,2]
[355993961,1741786243210,-500.85932994,0.00021917,2]
[355993962,1741786243219,-520.50517129,0.00021917,2]
[355993963,1741786243229,-500.0,0.00021917,2]
[355993964,1741786243238,-500.0,0.00021917,2]
[355993965,1741786243248,-516.60070537,0.00021917,2]
[355993966,1741786243258,-513.02273915,0.00021917,2]
[355993967,1741786243267,-517.93641567,0.00021917,2]
[355993968,1741786243276,-517.79066561,0.00021917,2]
[355993969,1741786243286,-541.34988226,0.00021917,2]
[355993970,1741786243405,-500.0,0.00021917,2]
[355993971,1741786243429,-503.92100872,0.00021917,2]
[355993972,1741786243439,-506.05569522,0.00021917,2]
[355993973,1741786243448,-500.0,0.00021917,2]
[355993974,1741786243458,-158.0293837,0.00021917,2]
[355993975,1741786243467,-500.0,0.00021917,2]
[355993976,1741786243477,-502.93936821,0.00021917,2]
[355993978,1741786243489,-23306.0,0.00021917,2]
[355993979,1741786243499,-314.34067797,0.00021917,2]
[355993981,1741786243508,-500.0,0.00021917,2]
[355993983,1741786243518,-500.0,0.00021917,2]
[355993984,1741786243527,-818.52,0.00021917,2]
[355993985,1741786243537,-500.0,0.00021917,2]
[355993986,1741786243546,-500.0,0.00021917,2]
[355993987,1741786243556,-495.72761307,0.00021917,2]
[355993988,1741786243565,-560.68061639,0.00021917,2]
[355993990,1741786243575,-500.0,0.00021917,2]
[355993991,1741786243585,-538.75436725,0.00021917,2]
[355993992,1741786243594,-500.0,0.00021917,2]
[355993993,1741786243603,-515.08191736,0.00021917,2]
[355993994,1741786243613,-515.2798722,0.00021917,2]
[355993995,1741786243624,-511.90442643,0.00021917,2]
[355993996,1741786243634,-506.31443036,0.00021917,2]
[355993997,1741786243643,-500.0,0.00021917,2]
[355993998,1741786243653,-359.03968934,0.00021917,2]
[355994000,1741786243663,-1382.13,0.00021917,2]
[355994002,1741786243672,-1382.13,0.00021917,2]
[355994006,1741786243681,-1382.13,0.00021917,2]
[355994008,1741786243690,-1382.13,0.00021917,2]
[355994011,1741786243699,-1382.13,0.00021917,2]
[355994013,1741786243708,-1382.13,0.00021917,2]
[355994016,1741786243718,-1382.13,0.00021917,2]
[355994017,1741786243728,-1382.13,0.00021917,2]
[355994019,1741786243737,-1382.13,0.00021917,2]
[355994021,1741786243747,-1382.13,0.00021917,2]
[355994022,1741786243757,-1382.13,0.00021917,2]
[355994024,1741786243766,-1382.13,0.00021917,2]
[355994026,1741786243776,-1382.13,0.00021917,2]
[355994027,1741786243786,-1382.13,0.00021917,2]
[355994029,1741786243795,-1382.13,0.00021917,2]
[355994031,1741786243804,-1382.13,0.00021917,2]
[355994032,1741786243814,-1382.13,0.00021917,2]
[355994034,1741786243823,-1382.13,0.00021917,2]
[355994035,1741786243833,-1382.13,0.00021917,2]
[355994037,1741786243843,-1382.13,0.00021917,2]
[355994039,1741786243853,-1382.13,0.00021917,2]
[355994040,1741786243863,-500.0,0.00021917,2]
[355994042,1741786243873,-1382.13,0.00021917,2]
[355994043,1741786243882,-1382.13,0.00021917,2]
[355994045,1741786243892,-1382.17871699,0.00021917,2]
[355994046,1741786243901,-500.0,0.00021917,2]
[355994048,1741786243911,-500.0,0.00021917,2]
[355994049,1741786243924,-2603.4,0.00021917,2]
[355994050,1741786243933,-171.36884901,0.00021917,2]
[355994051,1741786243945,-500.0,0.00021917,2]
[355994052,1741786243955,-500.0,0.00021917,2]
[355994053,1741786243966,-501.74341373,0.00021917,2]
[355994054,1741786243977,-21843.54,0.00021917,2]
[355994055,1741786243987,-429.31832679,0.00021917,2]
[355994056,1741786243996,-518.63931351,0.00021917,2]
[355994057,1741786244005,-508.55164121,0.00021917,2]
[355994058,1741786244016,-501.96633861,0.00021917,2]
[355994059,1741786244026,-154.88920999,0.00021917,2]
[355994060,1741786244036,-500.0,0.00021917,2]
[355994061,1741786244045,-523.10085203,0.00021917,2]
[355994062,1741786244055,-541.03948133,0.00021917,2]
[355994063,1741786244064,-172.83866389,0.00021917,2]
[355994064,1741786244073,-500.0,0.00021917,2]
[355994065,1741786244083,-500.0,0.00021917,2]
[355994066,1741786244093,-518.81271683,0.00021917,2]
[355994067,1741786244102,-500.0,0.00021917,2]
[355994068,1741786244111,-508.23769914,0.00021917,2]
[355994069,1741786244122,-500.0,0.00021917,2]
[355994070,1741786244131,-157.68139554,0.00021917,2]
[355994071,1741786244141,-509.16483294,0.00021917,2]
[355994072,1741786244150,-500.0,0.00021917,2]
[355994073,1741786244160,-500.0,0.00021917,2]
[355994074,1741786244170,-1000.0,0.00021917,7]
[355994075,1741786244179,-500.0,0.00021917,2]
[355994077,1741786244188,-500.0,0.00021917,2]
[355994078,1741786244197,-500.0,0.00021917,2]
[355994080,1741786244207,-500.0,0.00021917,2]
[355994081,1741786244216,-500.0,0.00021917,2]
[355994082,1741786244226,-500.0,0.00021917,2]
[355994083,1741786244235,-508.49291979,0.00021917,2]
[355994084,1741786244245,-500.0,0.00021917,2]
[355994085,1741786244255,-500.0,0.00021917,2]
[355994086,1741786244264,-500.0,0.00021917,2]
[355994087,1741786244274,-500.0,0.00021917,2]
[355994088,1741786244283,-511.32755426,0.00021917,2]
[355994089,1741786244293,-500.0,0.00021917,2]
[355994090,1741786244302,-500.0,0.00021917,2]
[355994091,1741786244311,-500.0,0.00021917,2]
[355994092,1741786244321,-821.08,0.00021917,2]
[355994093,1741786244330,-513.12423981,0.00021917,2]
[355994094,1741786244340,-500.0,0.00021917,2]
[355994095,1741786244349,-517.62664884,0.00021917,2]
[355994097,1741786244359,-512.87854661,0.00021917,2]
[355994099,1741786244368,-500.0,0.00021917,2]
[355994100,1741786244380,-464.09170446,0.00021917,2]
[355994101,1741786244389,-501.3689984,0.00021917,2]
[355994102,1741786244398,-514.82313136,0.00021917,2]
[355994103,1741786244408,-500.0,0.00021917,2]
[355994104,1741786244417,-477.01663991,0.00021917,2]
[355994105,1741786244426,-505.20966882,0.00021917,2]
[355994106,1741786244436,-519.23138082,0.00021917,2]
[355994107,1741786244445,-845.34,0.00021917,2]
[355994108,1741786244454,-500.0,0.00021917,2]
[355994109,1741786244463,-500.0,0.00021917,2]
[355994110,1741786244473,-254.53355088,0.00021917,2]
[355994111,1741786244483,-510.44633331,0.00021917,2]
[355994112,1741786244492,-508.32868218,0.00021917,2]
[355994113,1741786244502,-500.0,0.00021917,2]
[355994114,1741786244511,-511.01215018,0.00021917,2]
[355994115,1741786244521,-177.76818963,0.00021917,2]
[355994116,1741786244530,-500.0,0.00021917,2]
[355994117,1741786244539,-500.0,0.00021917,2]
[355994118,1741786244548,-489.42372418,0.00021917,2]
[355994119,1741786244558,-508.88319553,0.00021917,2]
[355994120,1741786244567,-500.0,0.00021917,2]
[355994121,1741786244576,-500.0,0.00021917,2]
[355994122,1741786244586,-500.0,0.00021917,2]
[355994123,1741786244595,-512.03991349,0.00021917,2]
[355994124,1741786244605,-2456.6938365,0.00021918,2]
[355994125,1741786244614,-1293.8017276,0.00021918,7]
[355994126,1741786244625,-151.0,0.00021918,2]
[355994127,1741786244635,-151.0,0.00021918,2]
[355994128,1741786244644,-151.0,0.00021918,2]
[355994129,1741786244653,-151.0,0.00021918,2]
[355994130,1741786244662,-151.0,0.00021918,2]
[355994131,1741786244672,-151.0,0.00021918,2]
[355994132,1741786244681,-151.0,0.00021918,2]
[355994133,1741786244690,-151.0,0.00021918,2]
[355994134,1741786244700,-151.0,0.00021918,2]
[355994135,1741786244709,-151.0,0.00021918,2]
[355994136,1741786244719,-151.0,0.00021918,2]
[355994137,1741786244728,-151.0,0.00021918,2]
[355994138,1741786244736,-151.0,0.00021918,2]
[355994139,1741786244746,-151.0,0.00021918,2]
[355994140,1741786244755,-151.0,0.00021918,2]
[355994141,1741786244764,-151.0,0.00021918,2]
[355994142,1741786244774,-151.0,0.00021918,2]
[355994143,1741786244783,-151.0,0.00021918,2]
[355994144,1741786244792,-289.7888,0.00021918,2]
[355994145,1741786244801,-150.0,0.00021973,2]
[355994146,1741786244810,-500.0,0.00022,2]
[355994147,1741786244819,-500.0,0.00022,2]
[355994148,1741786244828,-500.0,0.00022,2]
[355994149,1741786244838,-500.0,0.00022,2]
[355994150,1741786244847,-850.19660545,0.00022,2]
[355994151,1741786244856,-500.0,0.00022,2]
[355994152,1741786244866,-500.0,0.00022,2]
[355994153,1741786244876,-914.27090003,0.00022,2]
[355994154,1741786244885,-500.0,0.00022,2]
[355994155,1741786244895,-506.91293854,0.00022,2]
[355994156,1741786244904,-500.0,0.00022,2]
[355994157,1741786244914,-500.0,0.00022,2]
[355994158,1741786244927,-500.0,0.00022,2]
[355994159,1741786244936,-500.0,0.00022,2]
[355994160,1741786244945,-500.0,0.00022,2]
[355994161,1741786244957,-500.0,0.00022,2]
[355994162,1741786244972,-762.47774028,0.00022,2]
[355994163,1741786244985,-867.00399541,0.00022,2]
[355994164,1741786244998,-346.62983476,0.00022,2]
[355994165,1741786245012,-706.41285824,0.00022,2]
[355994166,1741786245023,-17917.2978109,0.00022,2]
[355994167,1741786245034,-160.0,0.0002201,19]
[355994168,1741786245045,-415.84331751,0.00022191,14]
[355994169,1741786245057,-500.0,0.00022191,2]
[355994170,1741786245070,-500.0,0.00022191,2]
[355994171,1741786245082,-524.66741718,0.00022191,2]
[355994172,1741786245093,-500.0,0.00022191,2]
[355994173,1741786245106,-523.98355532,0.00022191,2]
[355994174,1741786245118,-519.17679491,0.00022191,2]
[355994175,1741786245131,-500.0,0.00022191,2]
[355994176,1741786245144,-200.0,0.00022191,2]
[355994177,1741786245156,-500.0,0.00022191,2]
[355994178,1741786245170,-500.0,0.00022191,2]
[355994179,1741786245182,-500.0,0.00022191,2]
[355994180,1741786245193,-500.0,0.00022191,2]
[355994181,1741786245204,-239.42349852,0.00022191,2]
[355994182,1741786245216,-204.37328426,0.00022191,2]
[355994183,1741786245227,-562.30051542,0.00022191,2]
[355994184,1741786245239,-203.43876091,0.00022191,2]
[355994185,1741786245251,-272.20708508,0.00022191,2]
[355994186,1741786245263,-500.0,0.00022191,2]
[355994187,1741786245273,-807.82,0.00022191,2]
[355994188,1741786245285,-500.0,0.00022191,2]
[355994189,1741786245295,-500.0,0.00022191,2]
[355994190,1741786245305,-500.0,0.00022191,2]
[355994191,1741786245315,-549.16332801,0.00022191,2]
[355994192,1741786245328,-185.2474828,0.00022191,2]
[355994193,1741786245338,-384.45958159,0.00022191,2]
[355994194,1741786245350,-343.57647693,0.00022191,2]
[355994195,1741786245362,-500.0,0.00022191,2]
[355994196,1741786245376,-343.88885827,0.00022191,2]
[355994197,1741786245388,-500.0,0.00022191,2]
[355994198,1741786245400,-500.0,0.00022191,2]
[355994199,1741786245412,-509.3358538,0.00022191,2]
[355994200,1741786245424,-211.01365239,0.00022191,2]
[355994201,1741786245436,-500.0,0.00022191,2]
[355994202,1741786245448,-505.58278429,0.00022191,2]
[355994203,1741786245461,-521.23116966,0.00022191,2]
[355994204,1741786245472,-500.0,0.00022191,2]
[355994205,1741786245484,-576.18946235,0.00022191,2]
[355994206,1741786245495,-509.2465999,0.00022191,2]
[355994207,1741786245506,-522.34739435,0.00022191,2]
[355994208,1741786245517,-517.25234817,0.00022191,2]
[355994209,1741786245528,-500.0,0.00022191,2]
[355994210,1741786245542,-257.3944955,0.00022191,2]
[355994211,1741786245555,-500.0,0.00022191,2]
[355994212,1741786245567,-500.0,0.00022191,2]
[355994213,1741786245578,-500.0,0.00022191,2]
[355994214,1741786245588,-519.5,0.00022191,2]
[355994215,1741786245599,-500.0,0.00022191,2]
[355994216,1741786245610,-261.63865964,0.00022191,2]
[355994217,1741786245623,-500.0,0.00022191,2]
[355994218,1741786245635,-212.24074111,0.00022191,2]
[355994219,1741786245646,-334.83226665,0.00022191,2]
[355994220,1741786245656,-500.0,0.00022191,2]
[355994221,1741786245667,-509.63409818,0.00022191,2]
[355994222,1741786245677,-500.0,0.00022191,2]
[355994223,1741786245689,-500.0,0.00022191,2]
[355994224,1741786245699,-500.0,0.00022191,2]
[355994225,1741786245710,-500.0,0.00022191,2]
[355994226,1741786245721,-500.0,0.00022191,2]
[355994227,1741786245731,-275.43569481,0.00022191,2]
[355994228,1741786245742,-500.0,0.00022191,2]
[355994229,1741786245753,-23306.0,0.00022191,2]
[355994230,1741786245764,-515.8096654,0.00022191,2]
[355994231,1741786245775,-555.62019798,0.00022191,2]
[355994232,1741786245786,-818.52,0.00022191,2]
[355994233,1741786245796,-512.42216171,0.00022191,2]
[355994234,1741786245807,-500.0,0.00022191,2]
[355994235,1741786245817,-523.93245276,0.00022191,2]
[355994236,1741786245828,-553.58023356,0.00022191,2]
[355994237,1741786245839,-500.0,0.00022191,2]
[355994238,1741786245850,-626.09006797,0.00022191,2]
[355994239,1741786245862,-500.0,0.00022191,2]
[355994240,1741786245874,-530.46220326,0.00022191,2]
[355994241,1741786245886,-2603.4,0.00022191,2]
[355994242,1741786245898,-500.0,0.00022191,2]
[355994243,1741786245909,-500.0,0.00022191,2]
[355994244,1741786245921,-21843.54,0.00022191,2]
[355994245,1741786245933,-500.0,0.00022191,2]
[355994246,1741786245944,-500.0,0.00022191,2]
[355994247,1741786245955,-554.07105959,0.00022191,2]
[355994248,1741786245967,-500.0,0.00022191,2]
[355994250,1741786245978,-500.0,0.00022191,2]
[355994253,1741786245989,-500.0,0.00022191,2]
[355994255,1741786246000,-500.0,0.00022191,2]
[355994256,1741786246012,-1000.0,0.00022191,7]
[355994257,1741786246023,-518.16045965,0.00022191,2]
[355994258,1741786246034,-500.0,0.00022191,2]
[355994259,1741786246045,-500.0,0.00022191,2]
[355994260,1741786246056,-500.0,0.00022191,2]
[355994261,1741786246067,-538.25588042,0.00022191,2]
[355994262,1741786246078,-500.0,0.00022191,2]
[355994263,1741786246088,-500.0,0.00022191,2]
[355994264,1741786246099,-226.82840483,0.00022191,2]
[355994265,1741786246110,-500.0,0.00022191,2]
[355994266,1741786246122,-500.0,0.00022191,2]
[355994267,1741786246133,-500.0,0.00022191,2]
[355994268,1741786246143,-500.0,0.00022191,2]
[355994270,1741786246154,-224.3192094,0.00022191,2]
[355994271,1741786246165,-821.08,0.00022191,2]
[355994272,1741786246175,-500.0,0.00022191,2]
[355994273,1741786246186,-605.84644206,0.00022191,2]
[355994274,1741786246196,-301.19389409,0.00022191,2]
[355994275,1741786246207,-845.34,0.00022191,2]
[355994277,1741786246218,-329.53176972,0.00022191,2]
[355994279,1741786246229,-252.90435017,0.00022191,2]
[355994280,1741786246239,-504.72440878,0.00022191,2]
[355994281,1741786246250,-197.249733,0.00022191,2]
[355994282,1741786246261,-500.0,0.00022191,2]
[355994283,1741786246271,-499.2198666,0.00022191,2]
[355994284,1741786246282,-500.0,0.00022191,2]
[355994285,1741786246293,-160.0,0.00022255,20]
[355994286,1741786246303,-1000.0,0.00022352,2]
[355994287,1741786246313,-1000.0,0.00022352,2]
[355994288,1741786246324,-1000.0,0.00022352,2]
[355994289,1741786246335,-1000.0,0.00022352,2]
[355994290,1741786246346,-1000.0,0.00022352,2]
[355994291,1741786246356,-1000.0,0.00022352,2]
[355994292,1741786246366,-1000.0,0.00022352,2]
[355994293,1741786246379,-1000.0,0.00022352,2]
[355994294,1741786246390,-1028.53709032,0.00022352,2]
[355994295,1741786246400,-1000.0,0.00022352,2]
[355994296,1741786246411,-1000.0,0.00022352,2]
[355994297,1741786246421,-1000.0,0.00022352,2]
[355994298,1741786246432,-1000.0,0.00022352,2]
[355994299,1741786246442,-1000.0,0.00022352,2]
[355994300,1741786246453,-1000.0,0.00022352,2]
[355994301,1741786246464,-1000.0,0.00022352,2]
[355994302,1741786246475,-1000.0,0.00022352,2]
[355994303,1741786246485,-300.0,0.000224,10]
[355994304,1741786246496,-1149.46663565,0.00022452,3]
[355994305,1741786246507,-500.0,0.00022465,2]
[355994306,1741786246518,-526.56638948,0.00022465,2]
[355994307,1741786246529,-186.13418734,0.00022465,2]
[355994308,1741786246539,-500.0,0.00022465,2]
[355994309,1741786246550,-205.64621019,0.00022465,2]
[355994310,1741786246560,-500.0,0.00022465,2]
[355994311,1741786246572,-507.56381159,0.00022465,2]
[355994312,1741786246582,-500.0,0.00022465,2]
[355994313,1741786246593,-503.57799636,0.00022465,2]
[355994314,1741786246603,-500.0,0.00022465,2]
[355994315,1741786246611,-807.82,0.00022465,2]
[355994316,1741786246622,-574.07405993,0.00022465,2]
[355994317,1741786246632,-166.22340459,0.00022465,2]
[355994318,1741786246641,-500.0,0.00022465,2]
[355994319,1741786246834,-500.0,0.00022465,2]
[355994320,1741786246850,-500.0,0.00022465,2]
[355994321,1741786246860,-591.69451321,0.00022465,2]
[355994322,1741786246869,-576.43797414,0.00022465,2]
[355994323,1741786246880,-440.64396723,0.00022465,2]
[355994324,1741786246890,-500.0,0.00022465,2]
[355994325,1741786246898,-500.0,0.00022465,2]
[355994326,1741786246908,-500.0,0.00022465,2]
[355994327,1741786246917,-538.6756551,0.00022465,2]
[355994328,1741786246932,-519.5,0.00022465,2]
[355994329,1741786246941,-500.0,0.00022465,2]
[355994330,1741786246951,-568.32383695,0.00022465,2]
[355994331,1741786246960,-500.0,0.00022465,2]
[355994332,1741786246971,-163.86707767,0.00022465,2]
[355994333,1741786246980,-174.86885017,0.00022465,2]
[355994334,1741786246989,-500.0,0.00022465,2]
[355994335,1741786246999,-214.21204069,0.00022465,2]
[355994336,1741786247008,-500.0,0.00022465,2]
[355994337,1741786247018,-500.0,0.00022465,2]
[355994338,1741786247027,-23306.0,0.00022465,2]
[355994339,1741786247036,-818.52,0.00022465,2]
[355994340,1741786247046,-500.0,0.00022465,2]
[355994341,1741786247055,-500.0,0.00022465,2]
[355994342,1741786247064,-500.0,0.00022465,2]
[355994343,1741786247073,-2603.4,0.00022465,2]
[355994344,1741786247082,-500.0,0.00022465,2]
[355994345,1741786247091,-223.47240939,0.00022465,2]
[355994346,1741786247101,-21843.54,0.00022465,2]
[355994347,1741786247110,-500.0,0.00022465,2]
[355994348,1741786247120,-289.99761573,0.00022465,2]
[355994349,1741786247130,-395.76275535,0.00022465,2]
[355994350,1741786247140,-328.59940718,0.00022465,2]
[355994351,1741786247149,-500.0,0.00022465,2]
[355994352,1741786247159,-500.0,0.00022465,2]
[355994353,1741786247169,-1000.0,0.00022465,7]
[355994354,1741786247179,-500.0,0.00022465,2]
[355994355,1741786247188,-500.0,0.00022465,2]
[355994356,1741786247197,-499.83,0.00022465,2]
[355994357,1741786247207,-175.18599637,0.00022465,2]
[355994358,1741786247217,-500.0,0.00022465,2]
[355994359,1741786247226,-380.82484264,0.00022465,2]
[355994360,1741786247235,-469.73613559,0.00022465,2]
[355994361,1741786247245,-500.0,0.00022465,2]
[355994362,1741786247254,-521.39,0.00022465,2]
[355994363,1741786247264,-821.08,0.00022465,2]
[355994364,1741786247274,-466.03344923,0.00022465,2]
[355994365,1741786247283,-845.34,0.00022465,2]
[355994366,1741786247293,-500.0,0.00022465,2]
[355994367,1741786247303,-500.0,0.00022465,2]
[355994368,1741786247312,-160.0,0.000225,21]
[355994369,1741786247322,-213.79080163,0.000225,5]
[355994370,1741786247331,-250.0,0.00022521,2]
[355994371,1741786247340,-500.0,0.00022739,2]
[355994372,1741786247349,-500.0,0.00022739,2]
[355994373,1741786247358,-529.18547977,0.00022739,2]
[355994374,1741786247368,-500.0,0.00022739,2]
[355994375,1741786247382,-500.0,0.00022739,2]
[355994376,1741786247391,-807.82,0.00022739,2]
[355994377,1741786247401,-500.0,0.00022739,2]
[355994378,1741786247411,-500.0,0.00022739,2]
[355994379,1741786247421,-500.0,0.00022739,2]
[355994380,1741786247430,-500.0,0.00022739,2]
[355994381,1741786247440,-500.0,0.00022739,2]
[355994382,1741786247450,-212.80181401,0.00022739,2]
[355994383,1741786247460,-519.5,0.00022739,2]
[355994384,1741786247470,-366.45740757,0.00022739,2]
[355994385,1741786247479,-500.0,0.00022739,2]
[355994386,1741786247488,-500.0,0.00022739,2]
[355994387,1741786247498,-500.0,0.00022739,2]
[355994388,1741786247507,-500.0,0.00022739,2]
[355994389,1741786247517,-23306.0,0.00022739,2]
[355994390,1741786247526,-818.52,0.00022739,2]
[355994391,1741786247547,-500.0,0.00022739,2]
[355994392,1741786247557,-500.0,0.00022739,2]
[355994393,1741786247568,-500.0,0.00022739,2]
[355994394,1741786247579,-2603.4,0.00022739,2]
[355994395,1741786247589,-522.32441203,0.00022739,2]
[355994396,1741786247599,-21843.54,0.00022739,2]
[355994397,1741786247610,-500.0,0.00022739,2]
[355994398,1741786247620,-500.0,0.00022739,2]
[355994399,1741786247633,-500.0,0.00022739,2]
[355994400,1741786247643,-1000.0,0.00022739,7]
[355994401,1741786247654,-500.0,0.00022739,2]
[355994402,1741786247665,-500.0,0.00022739,2]
[355994403,1741786247676,-500.0,0.00022739,2]
[355994404,1741786247686,-500.0,0.00022739,2]
[355994405,1741786247696,-821.08,0.00022739,2]
[355994406,1741786247707,-845.34,0.00022739,2]
[355994407,1741786247717,-500.0,0.00022739,2]
[355994408,1741786247728,-527.74053315,0.00022739,2]
[355994409,1741786247739,-2891.29371124,0.00022776,2]
[355994410,1741786247750,-500.0,0.00022807,2]
[355994411,1741786247762,-500.0,0.00022807,2]
[355994412,1741786247773,-500.0,0.00022807,2]
[355994413,1741786247784,-500.0,0.00022807,2]
[355994414,1741786247796,-500.0,0.00022807,2]
[355994415,1741786247806,-500.0,0.00022807,2]
[355994416,1741786247817,-500.0,0.00022807,2]
[355994417,1741786247829,-500.0,0.00022807,2]
[355994418,1741786247840,-500.0,0.00022807,2]
[355994419,1741786247850,-500.0,0.00022807,2]
[355994420,1741786247860,-500.0,0.00022807,2]
[355994421,1741786247874,-500.0,0.00022807,2]
[355994422,1741786247886,-875.45059601,0.00022807,2]
[355994423,1741786247896,-500.0,0.00022807,2]
[355994424,1741786247906,-500.0,0.00022807,2]
[355994425,1741786247917,-500.0,0.00022807,2]
[355994426,1741786247927,-500.0,0.00022807,2]
[355994427,1741786247941,-500.0,0.00022807,2]
[355994428,1741786247950,-500.0,0.00022807,2]
[355994429,1741786247960,-500.0,0.00022807,2]
[355994430,1741786247970,-500.0,0.00022807,2]
[355994431,1741786247981,-500.0,0.00022807,2]
[355994432,1741786247992,-3000.00023689,0.0002289,2]
[355994433,1741786248001,-245.35917072,0.00023,2]
[355994434,1741786248011,-3977.86700397,0.00023,30]
[355994435,1741786248021,-500.0,0.00023,2]
[355994436,1741786248031,-354.0,0.00023,2]
[355994437,1741786248041,-160.0,0.00023,3]
[355994438,1741786248052,-15577.25547611,0.00023,3]
[355994439,1741786248062,-161.0,0.00023,2]
[355994440,1741786248072,-160.0,0.00023,3]
[355994441,1741786248082,-416.66666667,0.00023,3]
[355994442,1741786248093,-500.0,0.00023013,2]
[355994443,1741786248104,-500.0,0.00023013,2]
[355994444,1741786248115,-500.0,0.00023013,2]
[355994445,1741786248130,-500.0,0.00023013,2]
[355994446,1741786248140,-807.82,0.00023013,2]
[355994447,1741786248150,-500.0,0.00023013,2]
[355994448,1741786248160,-500.0,0.00023013,2]
[355994449,1741786248170,-500.0,0.00023013,2]
[355994450,1741786248180,-500.0,0.00023013,2]
[355994451,1741786248190,-486.34952079,0.00023013,2]
[355994452,1741786248199,-519.5,0.00023013,2]
[355994453,1741786248210,-178.10453145,0.00023013,2]
[355994454,1741786248220,-500.0,0.00023013,2]
[355994455,1741786248230,-500.0,0.00023013,2]
[355994456,1741786248240,-500.0,0.00023013,2]
[355994457,1741786248250,-23306.0,0.00023013,2]
[355994458,1741786248260,-818.52,0.00023013,2]
[355994459,1741786248271,-500.0,0.00023013,2]
[355994460,1741786248281,-500.0,0.00023013,2]
[355994461,1741786248292,-500.0,0.00023013,2]
[355994462,1741786248301,-2603.4,0.00023013,2]
[355994463,1741786248311,-21843.54,0.00023013,2]
[355994464,1741786248321,-500.0,0.00023013,2]
[355994465,1741786248331,-374.10872301,0.00023013,2]
[355994466,1741786248341,-500.0,0.00023013,2]
[355994467,1741786248351,-1000.0,0.00023013,7]
[355994468,1741786248362,-500.0,0.00023013,2]
[355994469,1741786248374,-500.0,0.00023013,2]
[355994470,1741786248385,-500.0,0.00023013,2]
[355994471,1741786248395,-500.0,0.00023013,2]
[355994472,1741786248405,-821.08,0.00023013,2]
[355994473,1741786248415,-845.34,0.00023013,2]
[355994474,1741786248426,-500.0,0.00023013,2]
[355994475,1741786248436,-436.0617693,0.00023068,2]
[355994476,1741786248446,-15572.92107546,0.00023197,2]
[355994477,1741786248455,-160.0,0.00023197,2]